bitfinex/quotes_ETHUSD_20260306
["timestamp","ask_amount","ask_price","bid_price","bid_amount"]
[1772803941811,1.22213531,2045.6,2044.7,0.96112415]
[1772803942118,4.88820646,2045.8,2044.7,0.96112415]
[1772803942325,0.14948499,2045.7,2044.7,0.96112415]
[1772803943506,4.88920646,2045.8,2044.7,0.96112415]
[1772803943911,4.88920646,2045.8,2044.9,0.64862415]
[1772803943912,0.001,2045.8,2044.9,0.64862415]
[1772803944145,1.22302965,2045.8,2044.9,0.64862415]
[1772803945042,1.22302965,2045.8,2044.5,0.0011]
[1772803945043,0.14948499,2045.5,2044.5,0.64972415]
[1772803945239,0.14948499,2045.2,2044.0,0.0011]
[1772803945923,1.22243411,2045.1,2044.0,0.0011]
[1772803946231,0.14948499,2045.0,2044.0,0.0011]
[1772803946540,1.665,2044.9,2043.8,0.0011]
[1772803947415,1.22243411,2045.1,2043.8,1.6858405]
[1772803947619,0.14948499,2045.0,2043.8,1.6858405]
[1772803947817,1.22243411,2045.1,2043.9,0.46156478]
[1772803948020,1.22211539,2045.7,2044.1,0.46156478]
[1772803948456,0.001,2045.8,2044.3,0.46156478]
[1772803948625,1.22306442,2045.8,2044.3,0.46156478]
[1772803949252,1.22302888,2045.8,2044.3,0.46156478]
[1772803949546,0.001,2045.8,2044.3,0.46156478]
[1772803949714,1.22302175,2045.8,2044.3,0.46156478]
[1772803950049,0.15048499,2045.8,2044.4,1.68441745]
[1772803950545,0.001,2045.8,2044.4,1.68441745]
[1772803951127,0.14948499,2045.7,2044.4,1.22285267]
[1772803951441,0.63984266,2045.7,2044.4,1.22285267]
[1772803952042,1.22213531,2045.6,2044.2,0.4648456]
[1772803952343,1.22211958,2045.7,2044.2,0.4648456]
[1772803952660,0.14948499,2045.6,2044.2,0.4648456]
[1772803954048,1.22219506,2045.5,2044.3,1.22291248]
[1772803954419,0.001,2045.8,2044.4,0.4648456]
[1772803954724,0.001,2045.8,2044.6,0.4648456]
[1772803954933,0.001,2046.6,2044.8,0.4648456]
[1772803954934,1.22159784,2046.5,2044.8,0.4648456]
[1772803955536,0.14948499,2046.4,2044.8,0.4648456]
[1772803955737,1.22159784,2046.5,2044.8,0.4648456]
[1772803956145,0.001,2046.6,2045.0,0.4648456]
[1772803957219,0.001,2046.6,2045.2,0.4648456]
[1772803958059,0.001,2046.6,2045.4,0.4648456]
[1772803958419,0.001,2046.6,2045.6,0.4648456]
[1772803958617,0.001,2046.6,2045.8,0.4648456]
[1772803959874,1.22119716,2047.2,2045.8,0.4648456]
[1772803960384,0.45776617,2047.3,2045.9,1.2219561]
[1772803961063,0.45776617,2047.1,2045.8,1.22200952]
[1772803962348,1.22129946,2047.0,2045.8,1.22200952]
[1772803962756,0.45776617,2047.1,2045.8,1.22200952]
[1772803962991,1.22111156,2047.4,2045.9,0.39662415]
[1772803963160,0.45776617,2048.0,2046.2,0.46216015]
[1772803963556,1.22161067,2048.2,2046.2,0.46216015]
[1772803963757,0.001,2048.2,2046.2,0.46216015]
[1772803963956,0.001,2048.2,2047.2,0.39662415]
[1772803964157,0.001,2048.2,2047.4,0.065536]
[1772803964376,0.001,2048.7,2047.5,1.22100122]
[1772803965067,0.45876617,2048.7,2047.5,1.22100122]
[1772803965777,0.001,2048.7,2047.5,1.22100122]
[1772803965977,0.45776617,2048.5,2047.3,2.69709684]
[1772803966551,0.001,2048.7,2047.5,0.46216015]
[1772803966963,1.22007539,2049.1,2047.5,0.46216015]
[1772803967278,0.45776617,2049.4,2047.5,0.46216015]
[1772803967989,1.54323098,2049.6,2047.5,0.46216015]
[1772803968183,0.32344269,2049.6,2047.9,0.39562415]
[1772803968487,5.82618076,2049.9,2048.5,1.61602932]
[1772803968488,0.94766537,2049.9,2048.5,1.61602932]
[1772803968784,0.45776617,2049.8,2048.5,1.22040517]
[1772803969156,0.94766537,2049.9,2048.6,0.46116015]
[1772803969482,2.16724403,2049.9,2048.9,0.46116015]
[1772803969660,0.77189945,2049.9,2048.9,0.46116015]
[1772803969863,0.6177456,2049.9,2048.9,0.46116015]
[1772803970068,4.87591538,2050.9,2048.9,0.46116015]
[1772803970265,0.45776617,2050.6,2049.1,0.065536]
[1772803970466,2.47564164,2051.0,2049.0,1.22010736]
[1772803970467,1.54275041,2051.1,2049.7,0.065536]
[1772803970682,1.54275041,2051.1,2049.8,1.473]
[1772803970996,5.33181115,2051.7,2050.0,2.57748987]
[1772803971193,0.45776617,2051.6,2050.1,0.065536]
[1772803971565,0.45776617,2051.6,2050.0,2.57748987]
[1772803971790,1.21850173,2051.7,2050.1,0.46116015]
[1772803972098,1.6762679,2051.7,2050.1,0.46116015]
[1772803972386,1.6762679,2051.7,2050.2,1.21939322]
[1772803972552,0.45776617,2051.6,2050.0,2.57748987]
[1772803972755,0.45776617,2051.6,2050.0,3.79697426]
[1772803972988,1.21850173,2051.7,2050.1,0.46116015]
[1772803973492,1.6762679,2051.7,2050.1,0.46116015]
[1772803974384,0.49943609,2051.6,2050.2,1.21939322]
[1772803975120,0.49943609,2051.4,2050.0,1.21951135]
[1772803975607,1.21850173,2051.7,2050.1,0.46116015]
[1772803975809,0.49943609,2051.6,2050.0,1.21951135]
[1772803976283,0.49943609,2051.2,2049.8,1.473]
[1772803976488,0.49943609,2051.0,2049.4,3.73663828]
[1772803976727,1.21885817,2051.1,2049.4,3.73663828]
[1772803976728,0.49943609,2050.8,2049.4,1.21986616]
[1772803977385,0.49943609,2050.6,2049.3,2.68992658]
[1772803977795,0.49943609,2050.4,2048.9,1.464]
[1772803978027,0.49943609,2050.4,2049.0,1.22010736]
[1772803978213,0.49943609,2050.4,2048.9,1.22013651]
[1772803978389,1.21933375,2050.3,2048.9,1.22013651]
[1772803978595,1.21933375,2050.3,2048.9,1.61576066]
[1772803978803,1.21933375,2050.3,2049.0,0.065536]
[1772803979516,0.49943609,2050.2,2048.9,1.22013651]
[1772803980399,4.87733502,2050.5,2049.1,1.22004782]
[1772803980785,0.001,2050.2,2049.1,1.22004782]
[1772803981110,0.50043609,2050.2,2048.9,4.88042947]
[1772803981314,0.50043609,2050.2,2048.9,1.22016691]
[1772803981615,0.50043609,2050.2,2048.5,5.27723604]
[1772803981616,0.50043609,2050.2,2048.5,1.22040517]
[1772803981931,0.45126959,2049.8,2048.4,4.0896333]
[1772803982084,0.45126959,2049.6,2048.4,0.20235747]
[1772803982286,0.45126959,2049.6,2048.3,2.68851357]
[1772803982619,1.67107929,2049.5,2048.3,2.68851357]
[1772803983319,0.45126959,2049.5,2048.3,2.68851357]
[1772803983528,1.67080406,2050.0,2048.4,0.065536]
[1772803983815,0.45126959,2050.4,2048.4,0.46116015]
[1772803984020,1.21933485,2050.3,2048.4,0.46116015]
[1772803984219,1.22039843,2050.2,2048.4,0.46116015]
[1772803984394,0.001,2050.2,2048.6,0.46116015]
[1772803984594,4.87573032,2051.0,2049.2,0.46016015]
[1772803984595,1.67018719,2051.0,2049.2,0.46016015]
[1772803984912,0.45126959,2050.9,2049.3,1.467]
[1772803985720,0.45126959,2050.7,2049.3,1.467]
[1772803986015,4.8756704,2051.2,2049.4,0.46016015]
[1772803986016,1.67011559,2051.2,2049.4,0.46016015]
[1772803986208,0.45126959,2051.2,2049.4,0.46016015]
[1772803986517,0.45126959,2051.7,2049.6,0.46016015]
[1772803986718,4.87425264,2051.6,2049.6,0.46016015]
[1772803986918,1.66983071,2051.6,2049.6,0.46016015]
[1772803987118,0.45126959,2051.5,2049.6,0.46016015]
[1772803987799,0.45126959,2051.3,2049.6,0.065536]
[1772803988184,0.45126959,2051.3,2049.5,1.2198097]
[1772803988185,0.14948499,2051.2,2049.5,1.2198097]
[1772803988417,1.21856112,2051.6,2049.5,1.2198097]
[1772803988418,0.45126959,2051.1,2049.5,1.2198097]
[1772803988618,0.45126959,2050.9,2049.4,4.87923883]
[1772803988820,0.45126959,2052.0,2049.7,0.39462415]
[1772803988990,0.45126959,2051.9,2049.8,0.065536]
[1772803989192,0.45126959,2051.9,2049.8,0.98458538]
[1772803989392,0.45126959,2051.3,2049.5,0.065536]
[1772803989722,0.45126959,2051.3,2049.4,4.87923883]
[1772803989920,0.45126959,2051.3,2049.5,0.39462415]
[1772803990219,0.45126959,2051.8,2049.6,0.46016015]
[1772803990397,0.45126959,2051.8,2050.1,0.39462415]
[1772803990596,0.45126959,2051.8,2050.3,1.21933375]
[1772803990597,1.21850173,2051.7,2050.3,1.21933375]
[1772803990791,1.66977132,2051.7,2050.3,1.21933375]
[1772803991300,0.45126959,2051.7,2050.3,1.21933375]
[1772803991622,0.45126959,2051.7,2050.3,1.58042746]
[1772803992426,0.45126959,2051.7,2050.3,1.21933375]
[1772803992718,1.21856112,2051.6,2050.3,1.21933375]
[1772803992921,4.87341081,2052.0,2050.3,1.97505161]
[1772803993220,0.45126959,2051.9,2050.4,0.36109371]
[1772803993413,0.45126959,2051.9,2050.3,1.21933375]
[1772803993721,0.45126959,2051.9,2050.4,0.065536]
[1772803994123,0.001,2051.6,2050.3,1.21933375]
[1772803994804,1.21862052,2051.5,2050.3,1.21933375]
[1772803995422,0.45126959,2051.4,2050.3,1.21933375]
[1772803995629,0.45126959,2051.4,2050.2,2.68334824]
[1772803996122,1.21960503,2051.6,2050.2,2.68334824]
[1772803996426,0.45126959,2051.5,2050.2,2.68334824]
[1772803996723,0.45126959,2051.5,2050.4,1.21927428]
[1772803996924,1.66993911,2051.5,2050.4,1.21927428]
[1772803997226,0.45126959,2051.4,2050.4,1.21927428]
[1772803998108,0.45126959,2051.4,2050.2,2.68335014]
[1772803998524,0.45126959,2051.4,2050.2,1.464]
[1772803998737,0.45126959,2051.0,2049.7,2.68069068]
[1772803999594,0.14948499,2050.9,2049.3,1.463]
[1772803999818,0.45126959,2050.8,2049.4,1.21986923]
[1772804000826,1.6703655,2050.7,2049.3,4.87947692]
[1772804001014,0.45126959,2050.6,2049.3,4.87947692]
[1772804002527,0.45126959,2050.6,2049.3,1.21992875]
[1772804002892,1.67048441,2050.5,2049.3,1.21992875]
[1772804003100,0.45126959,2050.5,2049.3,1.21992875]
[1772804004933,1.21927428,2050.4,2049.3,1.21992875]
[1772804005405,1.67054387,2050.4,2049.3,1.21992875]
[1772804005606,1.67054387,2050.4,2049.1,4.88004353]
[1772804005607,0.45126959,2050.3,2049.1,4.88004353]
[1772804005807,0.45126959,2050.3,2049.0,1.39848842]
[1772804006609,0.45126959,2050.3,2049.0,0.17840228]
[1772804006808,0.45126959,2049.8,2049.0,0.17840228]
[1772804007008,0.45126959,2051.0,2049.1,0.39562415]
[1772804007235,0.45126959,2050.8,2049.2,0.065536]
[1772804007438,0.45126959,2050.8,2049.4,0.065536]
[1772804008304,0.45126959,2051.2,2049.4,0.46116015]
[1772804008539,0.002,2051.3,2050.2,0.065536]
[1772804008714,0.002,2051.3,2050.3,1.459]
[1772804008903,0.002,2051.3,2050.4,1.21927428]
[1772804009622,0.002,2051.3,2050.5,0.065536]
[1772804010220,0.45126959,2052.1,2050.5,0.065536]
[1772804010438,0.45126959,2052.1,2050.5,0.79975386]
[1772804010639,0.45126959,2052.1,2050.7,0.065536]
[1772804010829,1.66928145,2052.6,2050.8,1.61466062]
[1772804011222,1.66924719,2052.6,2050.9,0.39562415]
[1772804011541,0.1604708,2052.9,2051.6,0.39562415]
[1772804011719,0.1604708,2052.9,2051.7,1.457]
[1772804012242,0.1604708,2052.9,2051.8,0.065536]
[1772804012443,0.1604708,2052.9,2051.8,0.46116015]
[1772804012946,0.80655224,2053.9,2052.2,0.46116015]
[1772804013114,0.48235067,2055.0,2052.2,0.46116015]
[1772804013316,0.48235067,2054.8,2052.4,0.52096891]
[1772804013512,0.48235067,2054.8,2052.6,0.52096891]
[1772804014043,0.48235067,2054.8,2052.5,2.0798627]
[1772804014044,0.48235067,2054.7,2052.5,2.0798627]
[1772804014341,0.48235067,2054.6,2052.6,0.065536]
[1772804014545,0.48235067,2054.6,2052.5,2.0798627]
[1772804014719,0.48235067,2054.4,2052.5,2.0798627]
[1772804015116,0.48235067,2054.2,2052.6,1.21796745]
[1772804015822,0.48235067,2054.2,2052.6,1.67340036]
[1772804016018,0.48235067,2054.2,2052.6,1.21796745]
[1772804016913,0.48235067,2054.5,2052.8,0.45543291]
[1772804017157,0.48235067,2054.3,2052.9,1.21778946]
[1772804017657,1.21690031,2054.4,2052.9,1.67322237]
[1772804017957,1.69910956,2054.7,2053.0,0.52096891]
[1772804018447,1.45867441,2055.2,2053.6,0.45543291]
[1772804018613,5.18906096,2055.6,2054.2,0.45543291]
[1772804018614,0.26393307,2055.6,2054.2,0.45543291]
[1772804018816,0.48235067,2056.1,2054.5,0.45543291]
[1772804019065,0.48235067,2056.1,2054.6,0.065536]
[1772804019250,0.32329555,2057.3,2054.6,0.52096891]
[1772804019251,0.48235067,2056.6,2054.6,0.52096891]
[1772804019414,0.48235067,2056.6,2054.8,0.45543291]
[1772804019620,0.48235067,2056.5,2054.5,1.21684108]
[1772804019815,0.48235067,2056.5,2054.6,0.065536]
[1772804020148,0.48235067,2056.5,2054.6,0.52096891]
[1772804020518,4.8622938,2056.7,2054.8,0.45543291]
[1772804020715,0.48235067,2056.6,2054.8,0.45543291]
[1772804020915,0.48235067,2056.6,2054.6,0.065536]
[1772804021121,1.69806745,2056.4,2054.7,1.21672263]
[1772804021320,1.21571678,2056.4,2054.8,0.52096891]
[1772804021738,1.21771678,2056.4,2054.8,0.52096891]
[1772804022129,0.002,2056.4,2054.8,0.52096891]
[1772804023351,0.002,2056.4,2055.0,0.52096891]
[1772804023539,0.002,2056.4,2055.1,1.441]
[1772804024351,0.002,2056.4,2055.3,0.52096891]
[1772804024554,0.1604708,2056.9,2055.3,0.52096891]
[1772804024856,0.1604708,2056.9,2055.9,0.52096891]
[1772804025054,1e-08,2056.9,2056.0,1.89343291]
[1772804025228,1e-08,2056.9,2056.1,1.21589416]
[1772804025429,0.48235068,2056.9,2055.4,2.65430757]
[1772804025624,0.48235068,2056.9,2055.0,3.13193086]
[1772804025830,0.48235067,2056.5,2054.9,1.437]
[1772804026142,0.48235067,2056.5,2055.0,1.21654501]
[1772804026337,0.48235067,2056.5,2054.9,2.65356191]
[1772804026929,0.48235067,2056.5,2054.9,1.21656191]
[1772804027255,0.48235067,2056.3,2054.6,1.21678185]
[1772804027573,0.48235067,2056.1,2054.6,1.21678185]
[1772804027873,0.48235067,2055.7,2054.4,0.20605504]
[1772804028159,0.48235067,2055.5,2054.4,1e-08]
[1772804028534,0.48235067,2055.5,2053.6,0.18316306]
[1772804028535,0.48235067,2055.5,2053.7,1.21731508]
[1772804028740,0.14948499,2055.2,2053.6,1.40049617]
[1772804028935,0.63183566,2055.2,2053.6,1.40049617]
[1772804029147,0.63183566,2055.2,2053.6,1.21733311]
[1772804029368,0.63183566,2055.2,2053.2,0.17389883]
[1772804029369,2.04950531,2054.9,2053.2,0.17389883]
[1772804029647,0.14948499,2054.7,2052.7,0.45543291]
[1772804029850,0.48235067,2054.2,2052.2,0.45543291]
[1772804030049,1.96555632,2054.6,2052.2,1.83198575]
[1772804030050,0.63183566,2054.1,2052.2,1.83198575]
[1772804030356,0.69737166,2053.8,2052.0,0.09588653]
[1772804030610,0.54788667,2053.4,2052.0,0.08925217]
[1772804030866,0.54788667,2053.4,2051.7,0.45543291]
[1772804030867,0.14948499,2053.3,2051.7,5.32935112]
[1772804031183,0.14948499,2053.1,2051.5,4.87427976]
[1772804031327,1.21773015,2053.0,2051.3,4.95953569]
[1772804031526,0.63183566,2052.9,2051.4,0.08466182]
[1772804031972,0.14948499,2052.7,2051.4,0.08466182]
[1772804032461,0.14948499,2052.4,2050.8,1.21903647]
[1772804032649,0.63183566,2052.4,2050.8,1.21903647]
[1772804032863,0.63183566,2052.4,2050.2,4.87737986]
[1772804032864,0.63183566,2052.4,2050.4,1.21927428]
[1772804033156,0.14948499,2052.7,2050.5,0.52096891]
[1772804033360,1.21784879,2052.8,2050.7,0.52096891]
[1772804033561,1.21784879,2052.8,2050.8,0.05566039]
[1772804033863,1.21784879,2052.8,2050.9,0.45543291]
[1772804034046,0.14948499,2052.7,2051.0,0.05565496]
[1772804034260,1.579,2052.6,2051.0,0.05565496]
[1772804034445,0.14948499,2052.7,2051.0,0.05565496]
[1772804034646,1.21784879,2052.8,2051.0,0.52634706]
[1772804034964,1.21784879,2052.8,2052.2,0.001]
[1772804035268,1.21767083,2053.1,2052.2,0.001]
[1772804035476,1.66826381,2053.1,2052.2,0.001]
[1772804035639,0.45059298,2053.0,2052.2,0.001]
[1772804036163,0.60007797,2052.7,2052.2,0.001]
[1772804036862,0.60007797,2052.7,2051.2,4.87518698]
[1772804037074,1.574,2052.6,2051.2,4.87518698]
[1772804037447,1.21802679,2052.5,2051.2,4.87518698]
[1772804037647,1.21802679,2052.5,2051.1,1.274451]
[1772804037648,0.45059298,2052.4,2051.1,1.27449714]
[1772804037972,1.21802679,2052.5,2051.1,1.27449714]
[1772804038173,2.79002679,2052.5,2051.1,1.27449714]
[1772804038373,1.21802679,2052.5,2051.1,1.27449714]
[1772804038546,2.79002679,2052.5,2051.1,1.27449714]
[1772804038746,2.78902679,2052.5,2051.1,1.27449714]
[1772804039647,3.23961977,2052.5,2051.1,1.27449714]
[1772804039848,0.60007797,2052.4,2051.1,1.27449714]
[1772804040056,1.21802679,2052.5,2051.1,1.27449714]
[1772804040262,1.21802679,2052.5,2051.1,1.74518924]
[1772804040477,1.21802679,2052.5,2051.2,0.4706921]
[1772804041545,0.14948499,2052.5,2051.1,1.27449714]
[1772804041779,1.567,2052.4,2051.1,1.27449714]
[1772804042072,1.566,2052.4,2051.1,1.27449714]
[1772804042477,2.02516593,2052.4,2051.1,1.27449714]
[1772804042780,0.45916593,2052.2,2051.1,0.05565225]
[1772804042945,0.14948499,2052.1,2051.1,0.05565225]
[1772804043548,3.71792809,2051.8,2050.3,4.87727262]
[1772804043747,0.14948499,2051.7,2050.3,1.21933375]
[1772804044281,0.44237293,2051.5,2050.2,1.21935685]
[1772804044451,0.14948499,2051.4,2049.9,1.21957168]
[1772804045342,0.14948499,2051.4,2049.7,5.35870341]
[1772804045343,0.14948499,2051.3,2049.7,1.21968374]
[1772804045651,0.14948499,2050.9,2049.3,1.7012859]
[1772804045845,1.56,2050.9,2049.4,0.48041667]
[1772804046246,1.21889944,2051.1,2049.4,0.48041667]
[1772804046478,1.559,2051.5,2049.8,0.48041667]
[1772804046852,1.21850173,2051.7,2049.8,0.48041667]
[1772804047153,1.21850173,2051.7,2050.0,0.48041667]
[1772804047546,0.14948499,2051.6,2050.1,1.2194527]
[1772804047748,1.21850173,2051.7,2050.1,1.2194527]
[1772804047948,1.556,2051.6,2050.2,0.48041667]
[1772804048385,3.71796454,2051.8,2050.2,0.48041667]
[1772804048586,1.21808614,2052.4,2050.5,0.065536]
[1772804048754,1.21808614,2052.4,2050.1,3.71520301]
[1772804048755,0.002,2052.2,2050.6,0.48041667]
[1772804049371,0.002,2052.2,2051.2,0.48041667]
[1772804049574,0.002,2052.2,2051.4,0.48041667]
[1772804051605,0.002,2052.2,2051.5,1.21862052]
[1772804051901,0.002,2052.2,2051.6,0.48041667]
[1772804052102,0.002,2052.2,2051.2,4.87495734]
[1772804052103,0.002,2052.2,2051.1,0.48041667]
[1772804053098,0.002,2052.2,2051.0,1.2189176]
[1772804053904,0.002,2052.2,2050.7,1.21909591]
[1772804054774,1.543,2052.1,2050.7,1.21909591]
[1772804054980,1.545,2052.2,2050.7,1.21909591]
[1772804055175,0.14948499,2052.1,2050.7,1.21909591]
[1772804055507,0.14948499,2051.9,2050.2,5.35786756]
[1772804055874,1.21844234,2051.8,2050.3,0.48041667]
[1772804057907,0.002,2052.4,2050.9,0.065536]
[1772804058203,1.21759473,2053.3,2051.6,0.48041667]
[1772804058796,9.33842732,2053.9,2052.2,0.48041667]
[1772804058797,3.72112369,2053.9,2052.2,0.48041667]
[1772804059504,1.21721987,2053.9,2052.2,0.48041667]
[1772804059813,4.8680913,2054.2,2052.4,0.48041667]
[1772804059814,1.21701879,2054.2,2052.4,0.48041667]
[1772804059994,1.21701879,2054.2,2052.5,1.21802679]
[1772804059995,1.66139172,2054.2,2052.5,1.21802679]
[1772804060181,1.533,2054.1,2052.5,1.21802679]
[1772804060809,1.532,2054.0,2052.5,1.21802679]
[1772804061206,1.21701879,2054.2,2052.6,0.48041667]
[1772804062004,5.31244809,2054.3,2052.7,1.21790812]
[1772804062197,0.14948499,2054.2,2052.7,1.21790812]
[1772804062396,0.44437293,2054.0,2052.2,4.87280382]
[1772804062583,6.76809548,2054.3,2052.2,1.21820485]
[1772804062584,0.59385792,2053.7,2052.2,1.21820485]
[1772804062903,0.14948499,2053.5,2052.2,1.21820485]
[1772804063507,1.527,2053.4,2052.2,1.21820485]
[1772804063823,1.526,2053.4,2052.2,1.21820485]
[1772804063986,1.21755223,2053.3,2052.2,1.21820485]
[1772804065183,1.67248499,2053.2,2051.5,5.35442359]
[1772804065711,1.67248499,2053.2,2051.6,0.48041667]
[1772804066022,1.21755223,2053.3,2051.8,0.48041667]
[1772804066314,1.521,2053.2,2051.8,0.48041667]
[1772804066512,0.14948499,2053.2,2051.8,0.48041667]
[1772804066723,1.21755223,2053.3,2051.8,0.48041667]
[1772804066882,1.52,2053.2,2051.8,0.48041667]
[1772804067083,1.21755223,2053.3,2051.8,0.48041667]
[1772804068155,4.87020893,2053.4,2051.9,1.69879963]
[1772804068605,4.87020893,2053.4,2052.0,0.48041667]
[1772804069392,6.38620893,2053.4,2052.0,0.48041667]
[1772804069579,1.21737436,2053.6,2052.0,0.48041667]
[1772804070110,1.2172877,2053.8,2052.2,0.48041667]
[1772804070309,1.2172877,2053.8,2052.1,1.21826421]
[1772804070310,1.2172877,2053.8,2052.4,0.48041667]
[1772804071511,1.512,2053.7,2052.4,0.48041667]
[1772804071807,1.66148499,2053.7,2052.4,0.48041667]
[1772804072219,1.21737436,2053.6,2052.5,1.21802679]
[1772804072421,1.21737436,2053.6,2052.5,1.71217383]
[1772804072803,1.21737436,2053.6,2052.6,0.49414704]
[1772804073192,1.21737436,2053.6,2052.5,1.21802679]
[1772804073417,1.21737436,2053.6,2052.2,1.21820485]
[1772804074912,0.14948499,2053.5,2052.2,1.21820485]
[1772804075647,1.505,2053.4,2052.2,1.21820485]
[1772804076007,1.21737436,2053.6,2052.3,0.49414704]
[1772804076705,1.21737436,2053.6,2052.5,0.49414704]
[1772804077123,1.503,2053.8,2052.5,0.49414704]
[1772804077124,1.2172927,2053.8,2052.5,0.49414704]
[1772804077699,0.14948499,2053.7,2052.5,0.49414704]
[1772804077898,0.14948499,2053.7,2052.4,1.21808614]
[1772804078718,1.64848499,2053.7,2052.4,1.71223318]
[1772804078919,1.21737436,2053.6,2052.4,1.71223318]
[1772804080210,1.496,2053.5,2052.4,1.71223318]
[1772804080937,1.21749293,2053.4,2052.4,1.71223318]
[1772804081497,1.494,2053.3,2052.4,1.71223318]
[1772804081905,4.87078621,2054.0,2052.6,0.49414704]
[1772804082198,1.21719655,2053.9,2052.6,0.49414704]
[1772804082415,2.71019655,2053.9,2052.6,0.49414704]
[1772804083299,4.87078621,2054.0,2052.7,1.21790812]
[1772804083519,1.491,2053.9,2052.7,1.21790812]
[1772804084236,4.87078621,2054.0,2052.7,1.21790812]
[1772804084413,1.489,2053.8,2052.7,1.21790812]
[1772804084614,1.488,2053.7,2052.7,1.21790812]
[1772804084936,0.002,2054.0,2052.7,0.49414704]
[1772804085126,0.002,2054.0,2052.6,1.21792086]
[1772804085127,0.002,2054.0,2052.9,0.49414704]
[1772804085496,0.002,2054.0,2052.9,1.21775975]
[1772804085699,0.002,2054.0,2053.0,0.49414704]
[1772804086912,1.21696542,2054.3,2052.9,1.21775975]
[1772804087114,1.484,2054.7,2053.2,0.49414704]
[1772804087346,1.21666342,2054.8,2053.5,1.21743364]
[1772804087547,1.21666342,2054.8,2053.6,0.49414704]
[1772804088126,4.8657151,2055.2,2053.6,0.49414704]
[1772804088450,2.69824908,2055.5,2053.6,0.49414704]
[1772804088820,2.69724908,2055.5,2053.8,0.49414704]
[1772804089022,0.44437293,2055.3,2053.8,0.49414704]
[1772804089447,4.86484083,2055.6,2054.0,0.49414704]
[1772804089750,1.48,2055.3,2054.0,0.49414704]
[1772804090750,1.48,2055.3,2053.7,4.86878621]
[1772804090751,1.92437293,2055.3,2053.7,5.36317031]
[1772804090933,1.92437293,2055.3,2053.8,0.49414704]
[1772804090934,1.477,2055.2,2053.8,0.49414704]
[1772804091323,0.44437293,2054.9,2053.5,1.21739078]
[1772804091524,2.84314841,2054.8,2053.4,2.21909773]
[1772804091824,1.21666342,2054.8,2053.5,0.49414704]
[1772804092417,0.002,2055.1,2053.7,0.49414704]
[1772804092418,1.2185306,2055.1,2053.7,0.49414704]
[1772804092728,0.002,2055.1,2054.1,0.49414704]
[1772804092925,0.002,2055.1,2054.3,0.49414704]
[1772804093345,1.2157759,2056.3,2054.5,0.49414704]
[1772804093542,1.21571678,2056.5,2054.7,0.49414704]
[1772804093850,0.44637293,2056.3,2054.7,0.49414704]
[1772804094039,1.472,2056.2,2054.7,0.49414704]
[1772804094217,1.21571678,2056.5,2054.7,0.49414704]
[1772804094623,1.472,2056.3,2054.7,0.49414704]
[1772804094848,1.471,2056.3,2054.7,0.49414704]
[1772804095150,6.33430482,2056.4,2054.7,0.49414704]
[1772804095524,6.33430482,2056.4,2054.9,0.4943993]
[1772804095719,1.47,2056.3,2054.9,0.4943993]
[1772804096254,1.469,2056.3,2054.9,0.4943993]
[1772804097260,1.468,2056.3,2054.9,0.4943993]
[1772804097431,1.21589416,2056.1,2054.9,1.7109574]
[1772804097624,1.467,2056.0,2054.9,1.7109574]
[1772804097824,1.467,2056.0,2054.9,1.71099841]
[1772804098141,1.21589416,2056.1,2055.0,0.4943993]
[1772804098540,2.68159856,2056.7,2055.0,0.4943993]
[1772804098753,4.86240072,2056.6,2055.0,0.4943993]
[1772804099041,5.30877365,2056.6,2055.0,0.4943993]
[1772804099242,4.86240072,2056.6,2055.0,0.4943993]
[1772804099452,1.21571678,2056.4,2055.2,0.4943993]
[1772804099956,4.86286714,2056.7,2055.2,0.4943993]
[1772804099957,4.86263068,2056.7,2055.2,0.4943993]
[1772804100348,0.44637293,2056.6,2054.8,1.71106272]
[1772804100549,0.59585792,2056.5,2054.9,0.4943993]
[1772804100754,1.5582305,2057.5,2056.3,0.4943993]
[1772804100950,1.5582305,2057.5,2055.0,2.74342882]
[1772804100951,1.53783479,2057.6,2055.9,2.49968019]
[1772804101151,1.21505157,2057.6,2056.4,0.4943993]
[1772804101452,4.85861432,2058.3,2056.8,0.4943993]
[1772804101958,4.85723404,2058.8,2057.2,0.49263812]
[1772804102383,1.21394862,2059.4,2058.2,0.49263812]
[1772804102582,1.21394862,2059.4,2058.4,0.49263812]
[1772804102875,4.85468386,2059.9,2058.4,0.49263812]
[1772804103387,1.21359223,2060.0,2058.6,0.49263812]
[1772804103663,0.91817971,2060.5,2059.0,0.49263812]
[1772804103664,1.21335662,2060.4,2059.0,0.49263812]
[1772804103838,1.461,2060.3,2058.5,0.49263812]
[1772804104041,0.44637293,2060.2,2058.2,0.49263812]
[1772804104240,0.44637293,2060.2,2057.8,1.71897793]
[1772804104464,0.44637293,2060.2,2057.9,0.065536]
[1772804104465,1.57456651,2059.8,2057.9,0.065536]
[1772804104643,1.57456651,2059.8,2058.1,0.065536]
[1772804104836,1.57456651,2059.8,2058.1,0.38831304]
[1772804105543,0.002,2058.6,2058.3,0.065536]
[1772804105749,1.4848257,2059.8,2058.3,0.065536]
[1772804105934,0.16047081,2061.0,2059.0,0.065536]
[1772804106132,0.75658552,2062.9,2060.5,0.25331747]
[1772804106369,5.60730545,2062.6,2060.5,0.25331747]
[1772804106556,0.75658552,2062.5,2060.5,0.25331747]
[1772804106760,0.75858552,2062.5,2060.6,0.065536]
[1772804106983,0.75658552,2062.3,2060.5,0.19891447]
[1772804107672,0.75658552,2061.7,2060.5,0.19891447]
[1772804107833,0.75658552,2061.7,2060.5,1.41220951]
[1772804108040,0.002,2061.6,2060.5,1.41220951]
[1772804108346,0.63846494,2059.3,2057.9,1.69911982]
[1772804108546,0.63846494,2059.3,2057.4,4.85979491]
[1772804108547,0.4762639,2060.3,2058.0,0.002]
[1772804108843,0.4762639,2059.9,2057.7,1.72263802]
[1772804109266,0.4762639,2059.9,2057.8,0.065536]
[1772804109678,0.4762639,2059.7,2058.0,0.065536]
[1772804110187,0.4762639,2059.7,2058.1,0.002]
[1772804110367,0.4762639,2059.7,2057.8,1.21486436]
[1772804110690,0.4762639,2059.7,2057.9,0.002]
[1772804111192,0.4762639,2059.7,2058.0,0.002]
[1772804111769,1.21382792,2059.6,2058.0,1.21677162]
[1772804112361,1.21347441,2060.2,2058.3,0.065536]
[1772804112587,1.68970532,2060.3,2058.5,0.30695047]
[1772804113292,0.4762639,2060.2,2058.6,0.002]
[1772804113664,0.4762639,2060.0,2058.6,0.002]
[1772804114377,0.003,2059.3,2058.6,0.002]
[1772804114756,0.4792639,2059.3,2057.9,1.3]
[1772804114959,0.4792639,2059.3,2058.1,0.002]
[1772804115265,0.4762639,2059.1,2057.8,0.32609634]
[1772804115469,0.4762639,2058.7,2057.8,0.002]
[1772804115796,1.6906727,2058.7,2057.8,0.002]